bitfinex/quotes_ETHUSD_20220202
["timestamp","ask_amount","ask_price","bid_price","bid_amount"]
[1643804035111,0.29824619,2793.2,2792.6,1.25632198]
[1643804035308,0.29824619,2793.2,2792.2,0.1789]
[1643804035508,0.29824619,2793.2,2792.3,1.25624007]
[1643804035908,0.88698193,2792.5,2792.3,1.25624007]
[1643804036110,3.21997338,2793.4,2792.3,1.25624007]
[1643804036310,3.21997338,2793.4,2791.6,0.80704084]
[1643804036311,0.22281753,2793.3,2792.4,1.25624007]
[1643804036509,0.1789,2793.2,2791.7,0.80669084]
[1643804036715,0.1789,2793.2,2791.8,1.25623479]
[1643804036716,0.22281753,2793.1,2791.8,1.25623479]
[1643804036914,0.26629728,2792.6,2791.9,0.1789]
[1643804037211,0.88314415,2792.3,2792.0,1.25623479]
[1643804037610,0.26629728,2792.6,2792.0,1.25623479]
[1643804038066,6.579,2793.2,2792.0,1.25623479]
[1643804038267,0.22086377,2793.1,2792.0,1.25623479]
[1643804038666,0.92328618,2792.4,2792.0,1.25623479]
[1643804040069,2.60776645,2793.1,2792.0,1.25623479]
[1643804040368,0.1789,2793.1,2792.0,1.25623479]
[1643804041068,1.00739313,2792.5,2792.0,1.25623479]
[1643804041267,0.78757197,2792.5,2792.0,1.25623479]
[1643804041473,0.1789,2793.1,2792.1,1.25623479]
[1643804041668,0.1789,2793.1,2791.7,0.1789]
[1643804041669,0.1789,2793.3,2792.2,1.26862306]
[1643804041912,4.2419,2793.7,2792.2,1.26862306]
[1643804041913,0.3,2793.4,2792.3,1.25623479]
[1643804042118,2.71773161,2793.6,2792.3,1.25623479]
[1643804042314,0.22281887,2793.5,2792.3,1.43513479]
[1643804042517,0.22281887,2793.5,2793.0,0.01288321]
[1643804042713,0.87881205,2793.4,2793.1,1.68623479]
[1643804042917,0.2228295,2793.3,2792.3,0.1789]
[1643804043119,0.2228295,2793.3,2792.4,1.2567577]
[1643804043316,0.87881205,2793.4,2792.4,1.48212614]
[1643804043520,0.87881205,2793.4,2792.5,1.4356577]
[1643804043719,0.87881205,2793.4,2792.6,1.2567577]
[1643804043919,1.17881205,2793.4,2792.7,1.2567577]
[1643804044118,1.17881205,2793.4,2792.2,0.1789]
[1643804044319,1.17881205,2793.4,2792.3,1.25866371]
[1643804044519,1.07881205,2793.4,2792.4,0.1789]
[1643804044724,1.07881205,2793.4,2792.5,1.25866371]
[1643804044921,0.1789,2793.7,2792.5,1.43791371]
[1643804045124,0.1789,2794.1,2792.8,0.01285305]
[1643804045321,0.1789,2794.5,2792.9,0.60925]
[1643804045562,2.33586465,2794.5,2792.9,0.60925]
[1643804045765,0.22087927,2794.4,2793.0,1.25866371]
[1643804045963,0.75353815,2793.6,2793.0,3.697072]
[1643804046165,0.75353815,2793.6,2793.1,1.25866371]
[1643804046764,0.75353815,2793.6,2792.8,0.01285305]
[1643804046964,1.02192597,2793.6,2792.9,1.25897818]
[1643804047267,1.05353815,2793.6,2792.9,1.25897818]
[1643804047461,1.05353815,2793.6,2792.7,0.1789]
[1643804047462,1.05353815,2793.6,2793.0,1.25897818]
[1643804047673,1.05353815,2793.6,2793.1,1.25897818]
[1643804047864,1.05353815,2793.6,2792.7,0.1789]
[1643804048063,1.05353815,2793.6,2792.8,1.25943368]
[1643804048971,0.87341294,2793.1,2792.8,1.25943368]
[1643804049172,0.87341294,2793.1,2792.7,0.1789]
[1643804049173,2.22170625,2793.0,2792.7,0.1789]
[1643804049417,0.22170619,2792.9,2792.7,0.1789]
[1643804049618,0.3,2793.0,2791.8,0.69132131]
[1643804049837,0.22175388,2792.9,2791.9,1.26055091]
[1643804050014,0.22175388,2792.9,2791.9,3.26055091]
[1643804050217,0.1789,2793.2,2792.0,1.43980091]
[1643804050414,0.66854153,2794.0,2792.1,3.43945091]
[1643804050415,0.1789,2793.6,2792.1,3.43945091]
[1643804050613,0.22168713,2793.3,2792.2,1.26055091]
[1643804050813,0.22168713,2793.3,2792.2,2.26055091]
[1643804051014,0.22168713,2793.3,2792.3,1.26055091]
[1643804051215,0.72261069,2793.1,2792.4,1.26055091]
[1643804051417,0.1789,2793.3,2792.2,3.42340121]
[1643804051622,1.57138871,2794.1,2792.5,0.1918338]
[1643804051623,0.1789,2793.6,2792.5,0.1918338]
[1643804051817,0.89512,2794.3,2792.6,1.26055091]
[1643804051818,0.22175635,2793.5,2792.6,1.26055091]
[1643804052017,0.22175635,2793.5,2792.7,2.21811186]
[1643804052219,0.22175635,2794.0,2792.8,1.26055091]
[1643804052422,0.83195599,2793.7,2792.8,1.26055091]
[1643804052617,0.22175635,2793.6,2792.8,1.26055091]
[1643804053264,0.22175635,2793.6,2792.9,1.97626281]
[1643804053465,0.1789,2794.2,2793.0,1.26055091]
[1643804053664,0.1789,2794.2,2793.1,1.26055091]
[1643804053665,0.22170473,2794.1,2793.1,1.26055091]
[1643804053865,0.1789,2794.0,2793.2,1.26055091]
[1643804054068,0.22170473,2793.9,2792.7,3.33837739]
[1643804054266,0.89695211,2793.7,2792.8,1.26041693]
[1643804054665,0.22170631,2793.6,2792.8,1.26041693]
[1643804056668,1.19695211,2793.7,2792.8,1.26041693]
[1643804059016,0.2252334,2793.6,2792.8,1.26041693]
[1643804059413,0.46155421,2793.6,2792.9,1.26041693]
[1643804059616,0.3,2793.7,2793.0,1.26041693]
[1643804059815,0.1789,2794.0,2792.7,2.0]
[1643804059816,0.1789,2794.0,2793.1,1.26041693]
[1643804060015,0.22535963,2793.9,2793.2,1.26041693]
[1643804060221,0.22535963,2793.9,2792.7,3.0]
[1643804060416,0.22535963,2793.9,2792.8,1.25630868]
[1643804060865,0.83512653,2793.2,2792.8,1.25630868]
[1643804061063,0.69709922,2793.5,2792.8,1.25630868]
[1643804061262,0.69709922,2793.5,2792.9,1.25630868]
[1643804061463,0.69709922,2793.5,2793.0,1.25630868]
[1643804061464,0.23363054,2793.4,2793.0,1.25630868]
[1643804061663,0.23363054,2793.4,2792.6,1.1789]
[1643804061867,0.23363054,2793.4,2792.7,1.24169711]
[1643804062064,0.23363054,2793.4,2792.8,1.24169711]
[1643804062264,0.23363054,2793.4,2792.9,1.24169711]
[1643804062464,0.23363054,2793.4,2793.0,1.24169711]
[1643804062769,0.24123517,2793.3,2792.5,0.0125838]
[1643804062964,0.24123517,2793.3,2792.6,1.24246236]
[1643804063166,0.24123517,2793.3,2792.7,1.24246236]
[1643804063365,0.24123517,2793.3,2792.8,1.24246236]
[1643804063565,0.24123517,2793.3,2792.9,1.24246236]
[1643804063764,0.24123517,2793.3,2792.4,0.1789]
[1643804063971,0.24123517,2793.3,2792.5,1.24271613]
[1643804064323,0.81216403,2793.0,2792.5,1.24271613]
[1643804064526,1.11216403,2793.0,2792.5,1.24271613]
[1643804064725,0.81216403,2793.0,2792.5,1.24271613]
[1643804064922,0.81216403,2793.0,2791.9,0.81959961]
[1643804064923,0.24223121,2792.9,2792.6,1.24271613]
[1643804065225,0.24223121,2792.9,2791.9,2.03548692]
[1643804065439,0.24223121,2792.9,2792.0,1.24259945]
[1643804065624,0.81216403,2793.0,2792.1,1.24259945]
[1643804065825,0.91216403,2793.0,2792.2,1.24259945]
[1643804066024,0.22138377,2792.7,2792.3,1.24259945]
[1643804066224,0.22138377,2792.7,2791.9,0.64069961]
[1643804066225,0.22138377,2792.7,2792.4,1.24259945]
[1643804066426,0.22138377,2792.7,2792.5,1.24259945]
[1643804066625,0.22138377,2792.7,2792.6,1.24259945]
[1643804066827,0.22138377,2792.7,2792.0,1.24259945]
[1643804067228,0.77603249,2792.3,2792.0,1.24259945]
[1643804067430,0.22138377,2792.7,2792.0,1.24259945]
[1643804067629,0.22138377,2792.7,2792.1,1.24259945]
[1643804067630,0.2426087,2792.6,2792.1,1.24259945]
[1643804068079,0.2426087,2792.6,2791.8,1.87039029]
[1643804068273,0.2426087,2792.6,2791.9,1.24259945]
[1643804068481,0.2426087,2792.6,2792.0,1.24259945]
[1643804068675,0.2426087,2792.6,2792.1,1.24259945]
[1643804068876,0.2426087,2792.6,2792.2,1.24259945]
[1643804069077,0.2426087,2792.6,2791.8,1.24259945]
[1643804069276,0.2426087,2792.6,2791.9,1.24259945]
[1643804069277,0.84142627,2792.5,2791.9,1.24259945]
[1643804069482,0.2426087,2792.6,2791.9,1.24259945]
[1643804069776,0.22138377,2792.7,2792.0,1.24259945]
[1643804069976,0.22138377,2792.7,2792.1,1.24259945]
[1643804070181,0.22138377,2792.7,2792.2,1.24259945]
[1643804070380,0.71571705,2792.5,2792.3,1.24259945]
[1643804070599,0.71571705,2792.5,2792.4,1.24259945]
[1643804070780,0.95848924,2792.5,2791.7,2.0]
[1643804071080,0.24277219,2792.4,2791.8,1.24418974]
[1643804071281,0.24277219,2792.4,2791.9,1.24418974]
[1643804071478,0.71571705,2792.5,2792.0,1.24418974]
[1643804071479,1.31571705,2792.5,2792.0,1.24418974]
[1643804071680,0.24282723,2792.4,2792.1,1.24418974]
[1643804071915,0.24282723,2792.4,2791.3,0.19143513]
[1643804071916,0.42172723,2792.4,2792.2,1.24418974]
[1643804072118,0.24105786,2792.0,2791.6,2.0]
[1643804072317,0.24105786,2792.0,2791.7,1.24365176]
[1643804072723,0.1789,2792.3,2791.3,0.64032597]
[1643804072918,0.1789,2792.4,2791.3,2.64032597]
[1643804073125,0.1789,2792.4,2791.4,1.8714426]
[1643804073721,0.24471239,2792.3,2791.4,1.8714426]
[1643804073924,0.2258248,2792.1,2791.5,1.24365176]
[1643804074119,0.2258248,2792.1,2791.6,1.24365176]
[1643804074419,0.1789,2792.4,2791.7,1.24365176]
[1643804074621,0.1789,2792.4,2791.8,1.24365176]
[1643804074819,0.1789,2792.4,2791.9,1.24365176]
[1643804075021,0.1789,2792.4,2792.0,1.24365176]
[1643804075222,0.1,2793.0,2791.5,0.62779084]
[1643804075223,0.1789,2792.6,2792.1,1.24365176]
[1643804075421,0.25185044,2792.4,2792.2,1.24365176]
[1643804075668,0.1789,2792.8,2791.5,0.80669084]
[1643804075870,0.1789,2792.8,2791.6,1.24094794]
[1643804075871,0.24464547,2792.7,2791.6,1.24094794]
[1643804076067,0.1789,2792.6,2791.7,1.24094794]
[1643804076265,0.24464547,2792.5,2791.8,1.24094794]
[1643804076463,0.24464547,2792.5,2791.4,2.80669084]
[1643804076464,1.03120109,2792.5,2791.9,1.24094794]
[1643804076663,0.24464547,2792.4,2792.0,1.24094794]
[1643804076867,0.78655562,2792.5,2791.5,1.24094794]
[1643804077067,0.78655562,2792.5,2791.6,1.24094794]
[1643804077068,0.2450629,2792.4,2791.6,1.24094794]
[1643804077266,0.2450629,2792.4,2791.7,1.24094794]
[1643804077467,0.2450629,2792.4,2791.8,1.24094794]
[1643804077667,0.2450629,2792.4,2791.3,0.81922597]
[1643804077668,0.2450629,2792.4,2791.9,1.24094794]
[1643804077868,0.2450629,2792.4,2792.0,1.24094794]
[1643804078068,0.2450629,2792.4,2792.1,1.24094794]
[1643804078277,0.2450629,2792.4,2792.3,0.5]
[1643804078671,0.4872364,2792.4,2792.3,0.5]
[1643804078870,0.4872364,2792.4,2791.3,0.81922597]
[1643804079170,0.2421735,2792.4,2791.4,1.24021371]
[1643804079809,0.78655562,2792.5,2791.4,1.24021371]
[1643804080012,0.78655562,2792.5,2791.4,1.86800455]
[1643804080211,1.38655562,2792.5,2791.4,1.86800455]
[1643804080411,1.38655562,2792.5,2791.3,0.19143513]
[1643804080412,0.24469581,2792.4,2791.5,1.24021371]
[1643804080611,0.24469581,2792.4,2791.6,1.24021371]
[1643804080815,0.24469581,2792.4,2791.7,1.24021371]
[1643804081112,0.2411112,2792.3,2791.8,1.24021371]
[1643804081311,1.38655562,2792.5,2791.9,1.24021371]
[1643804081511,1.38655562,2792.5,2792.0,1.24021371]
[1643804081712,1.38655562,2792.5,2791.4,2.12545454]
[1643804081713,1.08655562,2792.5,2792.1,1.24021371]
[1643804081918,1.08655562,2792.5,2791.5,1.24021371]
[1643804082117,0.24468066,2792.4,2791.6,1.23958666]
[1643804082318,0.24468066,2792.4,2791.7,1.23958666]
[1643804082517,0.45821735,2792.4,2791.8,1.23958666]
[1643804082719,0.21353669,2792.4,2791.9,1.23958666]
[1643804082917,0.21353669,2792.4,2792.0,1.23958666]
[1643804083159,0.21353669,2792.4,2791.3,0.01253513]
[1643804083368,1.08655562,2792.5,2791.4,1.23938673]
[1643804083562,0.24513866,2792.4,2791.4,1.23938673]
[1643804083775,1.08655562,2792.5,2791.4,1.23938673]
[1643804084366,1.08655562,2792.5,2791.3,0.64032597]
[1643804084367,0.26665621,2792.2,2791.5,1.23938673]
[1643804084565,0.26511065,2792.2,2791.6,1.23938673]
[1643804084765,0.26511065,2792.2,2791.7,1.23938673]
[1643804084968,0.26511065,2792.2,2791.3,0.01253513]
[1643804085169,2.48287202,2792.1,2791.4,1.2252688]
[1643804085369,0.77467575,2792.0,2791.5,1.2252688]
[1643804085568,0.77467575,2792.0,2791.2,0.1789]
[1643804085569,0.25867575,2791.9,2791.2,0.1789]
[1643804085871,0.70098349,2791.6,2791.3,1.22544592]
[1643804086067,0.70098349,2791.6,2791.3,0.46804592]
[1643804086467,0.70098349,2791.6,2790.8,0.1791]
[1643804086919,0.70098349,2791.6,2790.8,0.80689084]
[1643804087121,0.70098349,2791.6,2790.8,0.62779084]
[1643804087323,0.70098349,2791.6,2790.9,0.1791]
[1643804087523,0.3,2791.9,2790.9,0.1791]
[1643804087819,2.92267752,2792.0,2790.9,0.1791]
[1643804088020,2.95936246,2792.0,2790.9,0.1791]
[1643804088427,0.26743225,2791.6,2790.7,0.1791]
[1643804088623,2.95936246,2792.0,2790.7,0.80689084]
[1643804088823,2.11407076,2791.9,2790.7,0.62779084]
[1643804089022,2.11407076,2791.9,2790.6,0.62779084]
[1643804089023,0.1791,2791.9,2790.6,0.62779084]
[1643804089222,0.1791,2791.9,2790.7,0.62779084]
[1643804089423,0.70911232,2791.8,2790.7,0.62779084]
[1643804089630,0.1791,2791.7,2790.3,0.80689084]
[1643804089825,0.23623849,2791.4,2790.2,0.80689084]
[1643804090226,0.516,2791.3,2790.2,0.80689084]
[1643804090423,0.76464764,2790.8,2790.2,0.80689084]
[1643804090675,0.76464764,2790.8,2790.2,0.1791]
[1643804091079,0.516,2791.1,2790.2,0.1791]
[1643804091275,0.816,2791.1,2790.2,0.1791]
[1643804091577,0.6,2791.1,2790.1,0.90419078]
[1643804091776,0.7791,2791.3,2790.1,0.90419078]
[1643804091974,0.3,2791.1,2790.1,0.90419078]
[1643804092178,0.7791,2791.3,2790.1,0.90419078]
[1643804092179,0.8597669,2791.2,2790.1,0.90419078]
[1643804092577,0.3,2791.2,2790.1,0.90419078]
[1643804092979,0.1791,2791.3,2790.2,1.52358974]
[1643804093179,0.3,2791.3,2790.3,0.62779084]
[1643804093379,0.3,2791.3,2790.2,0.8957989]
[1643804093981,0.3,2791.3,2790.2,1.7916089]
[1643804094624,0.3,2791.3,2790.1,0.90419078]
[1643804094625,0.4791,2791.3,2790.1,0.90419078]
[1643804094822,0.4791,2791.3,2790.5,0.01233648]
[1643804095024,0.1791,2791.5,2790.5,0.01233648]
[1643804095223,0.88271313,2791.6,2790.5,0.01233648]
[1643804095420,2.1791,2791.8,2790.5,0.01233648]
[1643804095421,0.1791,2791.8,2790.5,0.01233648]
[1643804095623,0.1791,2791.8,2790.5,0.90804818]
[1643804095823,0.24204438,2791.4,2790.5,0.01233648]
[1643804096023,2.1791,2791.8,2790.5,0.01233648]
[1643804096226,0.1791,2791.8,2790.5,0.01233648]
[1643804096623,0.77742906,2791.8,2790.6,0.1791]
[1643804097621,3.18515932,2791.8,2790.6,0.1791]
[1643804097822,1.07742906,2791.8,2790.6,0.1791]
[1643804098069,3.47257908,2791.8,2790.6,0.1791]
[1643804098875,0.23910405,2791.4,2790.6,0.1791]
[1643804099072,0.75239994,2791.3,2790.6,0.1791]
[1643804099284,1.35239994,2791.3,2790.6,0.1791]
[1643804101271,0.20510844,2791.2,2790.6,0.1791]
[1643804101480,0.6951,2791.5,2791.4,0.06475332]
[1643804102320,0.1791,2791.5,2791.4,0.06475332]
[1643804102519,1.84536028,2791.7,2791.4,0.06475332]
[1643804102520,0.43203153,2791.6,2791.4,0.06475332]
[1643804103122,0.73203153,2791.6,2791.4,0.06475332]
[1643804103721,0.55293153,2791.6,2791.4,0.06475332]
[1643804104132,1.1497,2791.7,2791.4,0.06475332]
[1643804104329,0.1791,2791.8,2791.4,0.06475332]
[1643804104528,0.1791,2792.3,2791.4,0.07707123]
[1643804104924,1.32580276,2793.1,2791.4,0.07707123]
[1643804104925,0.1789,2792.6,2791.4,0.07707123]
[1643804105123,0.2508368,2792.4,2791.5,0.8953902]
[1643804105570,0.1789,2792.5,2791.6,0.89538]
[1643804105774,0.90980276,2793.0,2791.7,0.17925]
[1643804105775,0.1789,2792.9,2791.7,0.17925]
[1643804106074,0.32706426,2792.8,2791.8,1.15652163]
[1643804106268,0.1,2793.0,2791.8,1.15652163]
[1643804106269,0.32706426,2792.7,2791.8,1.15652163]
[1643804106470,0.32706426,2792.6,2791.8,2.94695493]
[1643804106672,0.80428909,2792.9,2791.9,1.33542163]
[1643804106872,0.32727297,2792.8,2792.1,0.89521]
[1643804107069,0.32727297,2792.7,2792.1,0.89521]
[1643804107270,0.32726345,2792.6,2792.1,0.89521]
[1643804107469,0.1,2793.0,2792.1,0.89521]
[1643804107769,0.32728264,2792.9,2792.1,0.89521]
[1643804108071,0.32728264,2792.9,2791.8,3.5808533]
[1643804108575,0.32728264,2792.9,2791.9,1.15770028]
[1643804108973,0.32728264,2792.9,2792.0,0.8952259]
[1643804109179,0.32728264,2792.9,2792.1,1.15770028]
[1643804109416,0.32728264,2792.9,2792.5,0.37284672]
[1643804109817,0.62728264,2792.9,2792.5,0.37284672]
[1643804110017,0.32728264,2792.8,2792.5,0.37284672]
[1643804111846,0.1,2793.0,2792.6,1.15883774]
[1643804111847,0.4,2793.0,2792.6,1.15883774]
[1643804112024,0.32674144,2792.9,2792.5,0.37284672]
[1643804112426,0.5834155,2792.9,2792.5,0.37284672]
[1643804112632,0.32674144,2792.8,2792.5,0.37284672]
[1643804113271,1.17278812,2793.0,2792.5,0.37284672]
[1643804113272,0.1,2793.0,2792.5,0.37284672]
[1643804113473,0.32669362,2792.9,2792.6,1.1589492]
[1643804113671,0.32669362,2792.9,2792.5,0.37284672]
[1643804114072,0.1,2793.0,2792.6,1.1587595]
[1643804114681,0.1,2793.0,2792.8,0.74569344]
[1643804114875,0.98967059,2793.7,2792.8,0.74569344]
[1643804114876,0.1789,2793.7,2792.9,0.18050883]
[1643804115078,0.89138871,2794.2,2792.9,0.00125883]
[1643804115079,0.32636079,2793.6,2792.9,0.00125883]
[1643804115275,0.32636079,2793.5,2792.9,0.00125883]
[1643804115475,0.18965871,2793.1,2792.9,0.00125883]
[1643804115675,0.18965871,2793.1,2792.9,0.89623883]
[1643804115875,0.18965871,2793.1,2792.9,0.00125883]
[1643804116080,0.32629423,2793.0,2792.8,0.74569344]
[1643804116277,0.62629423,2793.0,2792.8,0.74569344]
[1643804116574,0.18965871,2793.1,2792.8,0.74569344]
[1643804116819,0.32615944,2793.0,2792.8,0.74569344]
[1643804117826,0.62615944,2793.0,2792.8,0.74569344]
[1643804118024,0.32615944,2792.9,2792.8,0.74569344]
[1643804119233,2.61382633,2792.9,2792.8,0.74569344]
[1643804119430,6.5,2792.8,2791.8,0.5]
[1643804119634,3.88367325,2792.7,2791.8,0.5]
[1643804119830,0.32615944,2792.6,2791.8,0.5]
[1643804120029,0.23279687,2791.9,2791.6,0.1789]
[1643804120329,0.77542309,2792.2,2791.7,1.16344147]
[1643804120771,0.77542309,2792.2,2791.5,1.16344147]
[1643804120975,0.72542309,2792.2,2791.6,1.16344147]
[1643804121173,1.02542309,2792.2,2791.7,1.16344147]
[1643804121373,6.690686,2792.6,2791.8,1.16344147]
[1643804121574,0.34048603,2792.5,2791.5,1.16344147]
[1643804121774,0.64048603,2792.5,2791.6,1.14502239]
[1643804121974,0.34048603,2792.4,2791.7,1.14502239]
[1643804122281,0.91089813,2792.1,2791.8,1.14502239]
[1643804122474,0.91089813,2792.1,2791.9,1.14502239]
[1643804122675,0.91089813,2792.1,2791.4,0.06475332]
[1643804122877,0.91089813,2792.1,2791.5,1.14498612]
[1643804123875,0.210205,2792.1,2791.5,1.14498612]
[1643804129372,0.95321998,2791.8,2791.5,1.14498612]
[1643804129571,1.25321998,2791.8,2791.5,1.14498612]
[1643804130771,0.95321998,2791.8,2791.5,1.14498612]
[1643804131074,0.210205,2792.1,2791.5,1.14498612]
[1643804132426,0.76610114,2791.9,2791.5,1.14498612]
[1643804134831,1.06610114,2791.9,2791.5,1.14498612]
[1643804135236,0.99155687,2791.9,2791.5,1.14498612]
[1643804135436,0.20706941,2791.6,2791.5,1.14498612]
[1643804135870,0.99155687,2791.9,2791.5,1.14498612]
[1643804136070,0.76610114,2791.9,2791.5,1.14498612]
[1643804137075,0.23508329,2791.7,2791.5,1.14498612]
[1643804137576,0.76610114,2791.9,2791.5,1.14498612]
[1643804137781,1.06610114,2791.9,2791.5,1.14498612]
[1643804138876,1.26270901,2791.9,2791.5,1.14498612]
[1643804139519,0.49660787,2791.9,2791.5,1.14498612]
[1643804139820,0.3,2791.9,2791.5,1.14498612]
[1643804140221,0.3,2792.1,2791.5,1.14498612]
[1643804140423,0.3,2792.2,2791.5,1.14498612]
[1643804141023,0.94898912,2792.0,2791.5,1.14498612]
[1643804141226,1.24898912,2792.0,2791.5,1.14498612]
[1643804141426,0.81196187,2792.2,2791.5,1.14498612]
[1643804141624,0.36481048,2792.1,2791.5,1.14498612]
[1643804142025,0.20263044,2791.8,2791.5,1.14498612]
[1643804142625,0.67918178,2791.7,2791.5,1.14498612]
[1643804143275,0.97918178,2791.7,2791.5,1.14498612]
[1643804144877,0.97918178,2791.7,2790.7,0.62779084]
[1643804144878,3.65,2791.4,2790.7,0.62779084]
[1643804145079,1.04429313,2791.3,2790.6,0.6791]
[1643804145284,0.1791,2791.2,2790.6,0.5]
[1643804145584,0.1791,2791.2,2790.7,0.01201859]
[1643804145779,1.08285281,2791.8,2790.7,0.01201859]
[1643804145982,2.516,2791.7,2790.4,0.80689084]
[1643804146178,0.6951,2791.7,2790.4,0.62779084]
[1643804146381,0.2272628,2791.5,2790.5,0.62779084]
[1643804146823,0.94596921,2791.2,2790.5,0.62779084]
[1643804147324,0.94596921,2791.2,2790.4,0.63002556]
[1643804147726,1.54596921,2791.2,2790.5,0.62779084]
[1643804147925,1.54596921,2791.2,2790.4,0.00223472]
[1643804147926,1.54596921,2791.2,2790.4,0.63002556]
[1643804148133,1.54596921,2791.2,2790.5,0.62779084]
[1643804148532,1.54596921,2791.2,2790.4,0.63002556]
[1643804148929,0.2229004,2790.9,2790.4,0.63002556]
[1643804149129,0.94596921,2791.2,2790.5,0.62779084]
[1643804149331,0.94596921,2791.2,2790.6,0.62779084]
[1643804149733,0.94596921,2791.2,2790.5,0.62779084]
[1643804150129,0.94596921,2791.2,2790.4,0.80689084]
[1643804150435,5.9218,2791.6,2790.8,0.8958083]
[1643804150675,5.75710785,2791.6,2791.1,0.8957384]
[1643804150878,1.20610785,2791.6,2791.1,0.8957384]
[1643804151080,0.1791,2791.8,2791.1,0.8957384]
[1643804151375,0.23696355,2791.3,2791.1,0.8957384]
[1643804153577,0.13696355,2791.3,2791.1,0.8957384]
[1643804155124,0.13696355,2791.3,2790.8,0.8982145]
[1643804155331,0.13696355,2791.3,2790.8,0.0024745]
[1643804155627,0.1791,2791.2,2790.6,0.0024745]
[1643804156025,0.1791,2791.2,2790.5,0.8959498]
[1643804156026,0.6951,2791.2,2790.5,0.8959498]
[1643804156225,0.69945698,2790.9,2790.5,0.8959498]
[1643804158392,1.2329,2791.9,2791.1,2.6868935]
[1643804158788,0.19423944,2791.6,2791.1,2.6868935]
[1643804161488,1.2329,2791.9,2791.1,2.6868935]
[1643804161689,1.2329,2791.9,2791.1,2.689368]
[1643804161939,0.23486708,2791.7,2791.1,2.689368]
[1643804162139,0.23486708,2791.7,2791.1,1.7912623]
[1643804162339,0.1791,2792.0,2791.2,2.0]
[1643804162537,0.66854153,2792.2,2791.2,0.8956255]
[1643804162538,0.1791,2792.2,2791.2,0.8956255]
[1643804162737,0.73023707,2791.8,2791.2,0.8956255]
[1643804162938,0.73023707,2791.8,2791.2,0.8981]
[1643804163342,0.19072882,2791.7,2791.2,0.8981]
[1643804163543,0.19072882,2791.7,2791.2,0.8956255]
[1643804164944,0.40708284,2791.6,2791.3,1.0847356]
[1643804166587,0.19072882,2791.7,2791.3,1.0847356]
[1643804167387,0.40791213,2791.6,2791.3,1.0847356]
[1643804167789,0.19072882,2791.7,2791.3,1.0847356]
[1643804170236,0.40794961,2791.6,2791.3,1.0847356]
[1643804171442,0.40794961,2791.6,2790.5,1.69962834]
[1643804171443,7.51290023,2791.4,2790.5,1.69962834]
[1643804171638,7.51290023,2791.4,2791.0,0.00249088]
[1643804171639,1.18454153,2791.4,2791.0,0.00249088]
[1643804171837,0.1791,2791.3,2791.0,0.00249088]
[1643804172037,0.1791,2791.4,2791.0,0.00249088]
[1643804172237,1.6791,2791.5,2790.4,0.8959512]
[1643804172437,1.6791,2791.5,2790.3,0.00249088]
[1643804172438,0.26955984,2790.8,2790.3,0.00249088]
[1643804172838,1.6791,2791.5,2790.2,0.1791]
[1643804173090,1.5,2791.5,2790.3,0.66869099]
[1643804173294,1.5,2791.5,2790.4,0.1791]
[1643804173496,1.5,2791.5,2790.3,2.18159088]
[1643804173497,0.90225541,2790.9,2790.3,2.18159088]
[1643804173696,0.90225541,2790.9,2790.3,0.18159088]
[1643804173896,1.5,2791.5,2790.3,3.90211427]
[1643804174099,1.5,2791.5,2790.4,0.66869099]
[1643804174296,1.5,2791.5,2790.5,3.13488394]
[1643804174897,1.5,2791.5,2790.6,1.00249088]
[1643804175095,1.02084147,2791.3,2790.7,2.32793569]
[1643804175499,1.02084147,2791.3,2790.7,4.11929439]
[1643804176000,1.5,2791.5,2790.7,5.01497439]
[1643804176199,1.5,2791.5,2790.7,5.01746527]
[1643804176400,1.5,2791.5,2790.7,5.98615626]
[1643804176607,1.5,2791.5,2790.9,0.66869099]
[1643804176840,1.5,2791.5,2791.0,3.29166166]
[1643804177239,1.05987514,2791.4,2791.0,2.62297067]
[1643804177638,1.5,2791.5,2791.0,0.38209]
[1643804178041,1.5,2791.5,2791.1,0.8955336]
[1643804178244,1.5,2791.5,2791.2,0.1791]
[1643804178645,0.99496608,2791.4,2791.2,0.1791]
[1643804178843,1.5,2791.5,2791.1,0.8955336]
[1643804179444,1.5,2791.5,2791.1,1.7910836]
[1643804179846,0.68470212,2791.4,2791.1,1.7910836]
[1643804180046,0.91153091,2791.4,2791.1,1.7910836]
[1643804180349,0.68470212,2791.4,2791.1,1.7910836]
[1643804180993,1.5,2791.5,2791.1,0.8955336]
[1643804181795,0.20901677,2791.4,2791.1,0.8955336]
[1643804181992,1.5,2791.5,2791.1,0.8955336]
[1643804182291,0.74037064,2791.3,2791.1,0.8955336]
[1643804182791,0.74037064,2791.3,2791.0,1.7910671]
[1643804182991,1.5,2791.5,2791.0,1.7910671]
[1643804182992,0.24188122,2791.4,2791.0,1.7910671]
[1643804183997,0.694847,2791.3,2791.0,1.7910671]
[1643804184350,1.5,2791.5,2791.0,2.6866571]
[1643804185042,2.20562102,2791.5,2791.0,2.6866571]
[1643804185444,0.23908091,2791.2,2791.0,2.6866571]
[1643804186245,2.20562102,2791.5,2791.0,2.6866571]
[1643804186643,2.20562102,2791.5,2791.1,1.9226691]
[1643804186644,1.5,2791.5,2791.1,1.9226691]
[1643804186844,1.5,2791.5,2791.0,2.6866571]
[1643804187848,1.5,2791.5,2791.0,3.35534809]
[1643804188491,0.80447896,2791.2,2791.0,1.7910671]
[1643804188890,1.5,2791.5,2791.0,1.7910671]
[1643804189091,1.37787975,2791.5,2791.0,1.7910671]
[1643804189891,17.5334039,2791.0,2790.9,1.7912098]
[1643804190491,17.75238731,2791.0,2790.9,1.7912098]
[1643804190692,17.5334039,2791.0,2790.9,1.7912098]
[1643804191394,17.5334039,2791.0,2790.9,2.80039558]
[1643804199431,17.5334039,2791.0,2790.9,3.69596558]
[1643804201939,15.91108788,2791.0,2790.9,3.69596558]
[1643804203699,15.91108788,2791.0,2790.9,5.36465657]
[1643804203900,15.91108788,2791.0,2790.9,8.02511064]
[1643804204099,15.91108788,2791.0,2790.9,9.03025139]
[1643804204100,13.47788407,2791.0,2790.9,9.03025139]
[1643804204299,13.47788407,2791.0,2790.9,9.72535139]
[1643804204699,13.47788407,2791.0,2790.9,7.77323558]
[1643804206402,13.47788407,2791.0,2790.9,7.59413558]
[1643804208043,13.47788407,2791.0,2790.9,7.29413558]
[1643804208244,13.47788407,2791.0,2790.9,5.89420558]
[1643804208444,13.47788407,2791.0,2790.9,5.71495558]
[1643804208648,13.47788407,2791.0,2790.9,6.78553569]
[1643804209044,13.47788407,2791.0,2790.9,8.69953644]
[1643804209244,13.47788407,2791.0,2790.9,5.89420558]
[1643804209444,13.47788407,2791.0,2790.9,7.59413558]
[1643804209646,13.47788407,2791.0,2790.9,9.48948441]
[1643804210047,13.47788407,2791.0,2790.9,7.59413558]
[1643804210686,13.47788407,2791.0,2790.9,7.29413558]